[Event "8th RTU Open 2018"]
[Site "Riga"]
[Date "2018.08.08"]
[Round "4"]
[White "Seyb, Alexander"]
[Black "Kerem, Halil Ozgun"]
[Result "1/2-1/2"]
[ECO "B90"]
[WhiteElo "2383"]
[BlackElo "2194"]
[Annotator "NA"]
[PlyCount "59"]
[EventDate "2018.08.06"]
[EventType "swiss"]
[EventCountry "LAT"]
[SourceTitle "playchess.com"]
[Source "ChessBase"]
[SourceQuality "1"]
[TimeControl "5400+30"]

1. e4 {[%emt 0:00:00]} c5 {[%emt 0:00:00]} 2. Nf3 {[%emt 0:00:00]} d6 {[%emt 0:00:00]} 3. d4 {[%emt 0:00:00]} cxd4 {[%emt 0:00:00]} 4. Nxd4 {[%emt 0:00:00]} Nf6 {[%emt 0:00:00]} 5. Nc3 {[%emt 0:00:00]} a6 {[%emt 0:00:03]} 6. a3 {[%emt 0:00:01]} e5 {[%emt 0:00:06]} 7. Nf5 {[%emt 0:00:06]} d5 {[%emt 0:01:07]} 8. Bg5 {[%emt 0:00:08]} d4 {[%emt 0:01:12]} 9. Bxf6 {[%emt 0:00:06]} gxf6 {[%emt 0:02:42]} 10. Nb1 {[%emt 0:00:12]} Bxf5 {[%emt 0:00:20]} 11. exf5 {[%emt 0:00:05]} Qd5 {[%emt 0:00:07]} 12. Qd3 {[%emt 0:00:54]} Nc6 {[%emt 0:16:17]} 13. Nd2 {[%emt 0:08:30]} Qa5 {[%emt 0:04:44]} 14. O-O-O {[%emt 0:21:51]} Bh6 {[%emt 0:09:37]} 15. Qb3 {[%emt 0:03:24]} O-O {[%emt 0:17:53]} 16. Qh3 {[%emt 0:18:50]} Bg5 {[%emt 0:00:51]} 17. Qg4 {[%emt 0:01:18]} Kh8 {[%emt 0:03:58]} 18. h4 {[%emt 0:00:56]} Bf4 {[%emt 0:00:04]} 19. Rh3 {[%emt 0:11:59]} b5 {[%emt 0:04:30]} 20. Rb3 {[%emt 0:04:34]} b4 {[%emt 0:10:17]} 21. g3 {[%emt 0:00:06]} Bxd2+ {[%emt 0:00:48]} 22. Rxd2 {[%emt 0:00:01]} bxa3 {[%emt 0:00:30]} 23. Rxa3 {[%emt 0:00:09]} Qb4 {[%emt 0:00:26]} 24. Qe4 {[%emt 0:08:49]} Rab8 {[%emt 0:01:10]} 25. Qxc6 {[%emt 0:01:59]} Qxb2+ {[%emt 0:00:33]} 26. Kd1 {[%emt 0:00:01]} Qxa3 {[%emt 0:01:22]} 27. Qxf6+ {[%emt 0:00:02]} Kg8 {[%emt 0:00:07]} 28. Qg5+ {[%emt 0:07:09]} Kh8 {[%emt 0:00:05]} 29. Qf6+ {[%emt 0:00:03]} Kg8 {[%emt 0:00:04]} 30. Qg5+ 1/2-1/2

[Event "8th RTU Open 2018"]
[Site "Riga"]
[Date "2018.08.08"]
[Round "4"]
[White "Jackson, James P"]
[Black "Player, Edmund C"]
[Result "1-0"]
[ECO "C16"]
[WhiteElo "2380"]
[BlackElo "2194"]
[Annotator "NA"]
[PlyCount "89"]
[EventDate "2018.08.06"]
[EventType "swiss"]
[EventCountry "LAT"]
[SourceTitle "playchess.com"]
[Source "ChessBase"]
[SourceQuality "1"]
[TimeControl "5400+30"]

1. e4 {[%emt 0:00:00]} e6 {[%emt 0:00:00]} 2. d4 {[%emt 0:00:00]} d5 {[%emt 0:00:00]} 3. Nc3 {[%emt 0:00:00]} Bb4 {[%emt 0:00:11]} 4. e5 {[%emt 0:00:00]} Ne7 {[%emt 0:00:20]} 5. a3 {[%emt 0:00:00]} Bxc3+ {[%emt 0:00:15]} 6. bxc3 {[%emt 0:00:00]} b6 {[%emt 0:00:11]} 7. Qg4 {[%emt 0:01:27]} Ng6 {[%emt 0:00:33]} 8. h4 {[%emt 0:00:07]} h5 {[%emt 0:00:26]} 9. Qd1 {[%emt 0:00:07]} Ba6 {[%emt 0:00:14]} 10. Bxa6 {[%emt 0:01:01]} Nxa6 {[%emt 0:00:03]} 11. Bg5 {[%emt 0:00:09]} Qd7 {[%emt 0:00:19]} 12. Ne2 {[%emt 0:00:41]} Qa4 {[%emt 0:04:14]} 13. Ng3 {[%emt 0:06:24]} Qc4 {[%emt 0:06:58]} 14. Qf3 {[%emt 0:00:19]} c5 {[%emt 0:10:52]} 15. Rd1 {[%emt 0:01:09]} Nb8 {[%emt 0:21:00]} 16. Rh3 {[%emt 0:06:45]} Nc6 {[%emt 0:10:13]} 17. Nxh5 {[%emt 0:02:32]} Rh7 {[%emt 0:02:12]} 18. Nf4 {[%emt 0:17:23]} Nxf4 {[%emt 0:16:20]} 19. Qxf4 {[%emt 0:00:08]} Rc8 {[%emt 0:02:20]} 20. h5 {[%emt 0:01:34]} cxd4 {[%emt 0:05:04]} 21. cxd4 {[%emt 0:00:14]} Qxc2 {[%emt 0:02:46]} 22. Rc1 {[%emt 0:03:44]} Qf5 {[%emt 0:05:33]} 23. g4 {[%emt 0:07:03]} Qxf4 {[%emt 0:01:18]} 24. Bxf4 {[%emt 0:00:02]} Kd7 {[%emt 0:01:20]} 25. Rhc3 {[%emt 0:00:51]} Rhh8 {[%emt 0:01:13]} 26. Be3 {[%emt 0:00:29]} f6 {[%emt 0:06:22]} 27. exf6 {[%emt 0:03:20]} gxf6 {[%emt 0:00:01]} 28. f3 {[%emt 0:09:17]} Ne7 {[%emt 0:02:51]} 29. Bf4 {[%emt 0:02:08]} Nc6 {[%emt 0:00:43]} 30. Kf2 {[%emt 0:00:22]} e5 {[%emt 0:00:33]} 31. dxe5 {[%emt 0:00:26]} fxe5 {[%emt 0:00:03]} 32. Rxc6 {[%emt 0:21:36]} Rxc6 {[%emt 0:00:33]} 33. Rxc6 {[%emt 0:00:06]} Kxc6 {[%emt 0:00:55]} 34. Bxe5 {[%emt 0:00:06]} Rh7 {[%emt 0:00:28]} 35. Ke3 {[%emt 0:00:13]} Kc5 {[%emt 0:00:30]} 36. f4 {[%emt 0:00:30]} Kc4 {[%emt 0:00:16]} 37. f5 {[%emt 0:02:25]} d4+ {[%emt 0:00:02]} 38. Bxd4 {[%emt 0:01:27]} Re7+ {[%emt 0:00:04]} 39. Kf4 {[%emt 0:00:07]} Kxd4 {[%emt 0:00:03]} 40. f6 {[%emt 0:00:05]} Re8 {[%emt 0:01:59]} 41. g5 {[%emt 0:01:19]} Rf8 {[%emt 0:00:40]} 42. Kf5 {[%emt 0:00:14]} b5 {[%emt 0:00:16]} 43. g6 {[%emt 0:00:05]} Kd5 {[%emt 0:00:43]} 44. g7 {[%emt 0:00:09]} Rd8 45. Kf4 1-0

[Event "8th RTU Open 2018"]
[Site "Riga"]
[Date "2018.08.08"]
[Round "4"]
[White "Sinz, Bernhard"]
[Black "Annaberdiev, Meilis"]
[Result "1-0"]
[ECO "B32"]
[WhiteElo "2377"]
[BlackElo "2509"]
[Annotator "ChessBase"]
[PlyCount "91"]
[EventDate "2018.08.06"]
[EventType "swiss"]
[EventCountry "LAT"]
[SourceTitle "playchess.com"]
[Source "ChessBase"]
[SourceQuality "1"]
[TimeControl "5400+30"]

1. e4 {[%emt 0:00:00]} c5 {[%emt 0:00:00]} 2. Nf3 {[%emt 0:00:00]} Nc6 {[%emt 0:00:00]} 3. d4 {[%emt 0:00:05]} cxd4 {[%emt 0:00:00]} 4. Nxd4 {[%emt 0:00:06]} Qb6 {[%emt 0:00:00]} 5. Nb3 {[%emt 0:00:36]} Nf6 {[%emt 0:00:00]} 6. Nc3 {[%emt 0:00:28]} e6 {[%emt 0:00:00]} 7. Qe2 {[%emt 0:01:18]} Bb4 {[%emt 0:01:46]} 8. Bd2 {[%emt 0:00:20]} a5 {[%emt 0:00:46]} 9. a4 {[%emt 0:03:35]} O-O {[%emt 0:04:18]} 10. O-O-O {[%emt 0:04:33]} d5 {[%emt 0:06:36]} 11. e5 {[%emt 0:06:00]} Bxc3 {[%emt 0:08:44]} 12. Bxc3 {[%emt 0:00:35]} Ne4 {[%emt 0:00:05]} 13. Bd4 {[%emt 0:06:42]} Nxd4 {[%emt 0:00:21]} 14. Rxd4 {[%emt 0:00:22]} f6 {[%emt 0:12:02]} 15. exf6 {[%emt 0:02:16]} Rxf6 {[%emt 0:00:07]} 16. f3 {[%emt 0:07:34]} Nd6 {[%emt 0:00:05]} 17. g4 {[%emt 0:07:48]} Bd7 {[%emt 0:01:48]} 18. g5 {[%emt 0:09:44]} Rff8 {[%emt 0:00:51]} 19. g6 {[%emt 0:11:39]} Rac8 {[%emt 0:09:06]} 20. gxh7+ {[%emt 0:05:06]} Kh8 {[%emt 0:05:34]} 21. Kb1 {[%emt 0:00:52]} Nf5 {[%emt 0:04:25]} 22. Rf4 {[%emt 0:13:28]} e5 {[%emt 0:12:23]} 23. Qxe5 {[%emt 0:00:39]} Rfe8 {[%emt 0:00:07]} 24. Qxd5 {[%emt 0:00:56]} Re1+ {[%emt 0:00:05]} 25. Ka2 {[%emt 0:03:27]} Be6 {[%emt 0:04:19]} 26. Qb5 {[%emt 0:03:54]} Qd6 {[%emt 0:05:10]} 27. Rxf5 {[%emt 0:02:46]} Bxf5 {[%emt 0:04:05]} 28. Qxf5 {[%emt 0:00:33]} Rf8 {[%emt 0:00:05]} 29. Qc5 {[%emt 0:02:26]} Qf4 {[%emt 0:00:06]} 30. Qxa5 {[%emt 0:01:23]} Qh4 {[%emt 0:01:25]} 31. Rg1 {[%emt 0:01:54]} b6 {[%emt 0:02:15]} 32. Qa7 {[%emt 0:01:34]} Qf6 {[%emt 0:00:22]} 33. a5 {[%emt 0:02:00]} bxa5 {[%emt 0:02:31]} 34. Bd3 {[%emt 0:00:32]} Re7 {[%emt 0:01:22]} 35. Qd4 {[%emt 0:00:17]} a4 {[%emt 0:01:06]} 36. Qxa4 {[%emt 0:01:06]} Qb6 {[%emt 0:01:21]} 37. Qd4 {[%emt 0:00:15]} Qc7 {[%emt 0:00:02]} 38. Be4 {[%emt 0:00:59]} Qxh2 {[%emt 0:00:48]} 39. Rd1 {[%emt 0:00:10]} Qe2 {[%emt 0:00:32]} 40. Kb1 {[%emt 0:00:17]} Ree8 {[%emt 0:00:48]} 41. Nc5 {[%emt 0:00:16]} Qb5 {[%emt 0:01:33]} 42. Rg1 {[%emt 0:00:49]} Re7 {[%emt 0:00:39]} 43. Ne6 {[%emt 0:00:32]} Rd7 {[%emt 0:00:36]} 44. Qc3 {[%emt 0:00:51]} Rb8 {[%emt 0:00:56]} 45. Nxg7 {[%emt 0:00:34]} Rc7 {[%emt 0:00:32]} 46. Ne8+ 1-0

[Event "8th RTU Open 2018"]
[Site "Riga"]
[Date "2018.08.08"]
[Round "4"]
[White "Sirosh, Ilja"]
[Black "Pavlov, Sergey"]
[Result "0-1"]
[ECO "A13"]
[WhiteElo "2372"]
[BlackElo "2003"]
[Annotator "NA"]
[PlyCount "102"]
[EventDate "2018.08.06"]
[EventType "swiss"]
[EventCountry "LAT"]
[SourceTitle "playchess.com"]
[Source "ChessBase"]
[SourceQuality "1"]
[TimeControl "5400+30"]

1. c4 {[%emt 0:00:00]} e6 {[%emt 0:00:57]} 2. g3 {[%emt 0:00:00]} d5 {[%emt 0:00:38]} 3. Bg2 {[%emt 0:00:02]} Nf6 {[%emt 0:00:39]} 4. Nf3 {[%emt 0:00:16]} d4 {[%emt 0:01:11]} 5. e3 {[%emt 0:03:08]} c5 {[%emt 0:01:16]} 6. exd4 {[%emt 0:01:37]} cxd4 {[%emt 0:00:08]} 7. d3 {[%emt 0:01:49]} Nc6 {[%emt 0:00:46]} 8. O-O {[%emt 0:00:07]} Bd6 {[%emt 0:00:36]} 9. Na3 {[%emt 0:04:09]} O-O {[%emt 0:02:18]} 10. Re1 {[%emt 0:16:43]} Re8 {[%emt 0:11:30]} 11. Nc2 {[%emt 0:23:19]} e5 {[%emt 0:07:39]} 12. Bg5 {[%emt 0:02:06]} Bf5 {[%emt 0:02:20]} 13. Nh4 {[%emt 0:06:07]} Bd7 {[%emt 0:09:31]} 14. a3 {[%emt 0:11:31]} h6 {[%emt 0:06:36]} 15. Bd2 {[%emt 0:10:01]} Bg4 {[%emt 0:11:51]} 16. Qb1 {[%emt 0:09:27]} Qd7 {[%emt 0:07:45]} 17. b4 {[%emt 0:05:09]} Rac8 {[%emt 0:09:00]} 18. b5 {[%emt 0:00:33]} Nb8 {[%emt 0:00:59]} 19. Nb4 {[%emt 0:00:34]} g5 {[%emt 0:01:56]} 20. Nf3 {[%emt 0:01:24]} Qf5 {[%emt 0:00:37]} 21. Qd1 {[%emt 0:00:08]} Nbd7 {[%emt 0:01:12]} 22. Nxd4 {[%emt 0:02:17]} exd4 {[%emt 0:01:23]} 23. f3 Rxe1+ {[%emt 0:09:06]} 24. Bxe1 {[%emt 0:00:03]} Bh5 {[%emt 0:02:28]} 25. g4 {[%emt 0:00:02]} Nxg4 {[%emt 0:00:22]} 26. fxg4 {[%emt 0:00:03]} Bxg4 {[%emt 0:00:07]} 27. Qc2 {[%emt 0:01:02]} Bf3 {[%emt 0:01:52]} 28. Qf2 {[%emt 0:01:18]} Ne5 {[%emt 0:00:58]} 29. Bd2 {[%emt 0:00:57]} Qg4 {[%emt 0:02:32]} 30. Nd5 {[%emt 0:00:35]} Qxg2+ {[%emt 0:02:16]} 31. Qxg2 {[%emt 0:00:01]} Bxg2 {[%emt 0:00:06]} 32. Kxg2 {[%emt 0:00:06]} Nxd3 {[%emt 0:00:10]} 33. Kf3 {[%emt 0:01:22]} Ne5+ {[%emt 0:01:06]} 34. Ke4 {[%emt 0:00:06]} Nxc4 {[%emt 0:00:17]} 35. Bb4 {[%emt 0:00:14]} Kg7 {[%emt 0:00:42]} 36. Kd3 {[%emt 0:01:11]} Bxb4 {[%emt 0:02:23]} 37. axb4 {[%emt 0:00:03]} Nb6 {[%emt 0:00:14]} 38. Ne7 {[%emt 0:00:15]} Rc3+ {[%emt 0:00:55]} 39. Kxd4 {[%emt 0:00:02]} Rc4+ {[%emt 0:00:18]} 40. Kd3 {[%emt 0:01:10]} Rc7 {[%emt 0:02:19]} 41. Nf5+ {[%emt 0:00:03]} Kg6 {[%emt 0:00:06]} 42. Ne3 {[%emt 0:00:22]} Rd7+ {[%emt 0:00:37]} 43. Ke4 {[%emt 0:00:11]} Nc8 {[%emt 0:01:03]} 44. Nc4 {[%emt 0:01:51]} Nd6+ {[%emt 0:00:31]} 45. Nxd6 {[%emt 0:00:01]} Rxd6 {[%emt 0:00:07]} 46. Rxa7 {[%emt 0:00:02]} b6 {[%emt 0:00:18]} 47. Rc7 {[%emt 0:00:04]} Re6+ {[%emt 0:00:51]} 48. Kd5 {[%emt 0:00:04]} g4 {[%emt 0:00:15]} 49. Rc6 {[%emt 0:00:12]} h5 {[%emt 0:00:18]} 50. Rxe6+ {[%emt 0:02:42]} fxe6+ {[%emt 0:00:08]} 51. Kc6 {[%emt 0:00:15]} h4 {[%emt 0:00:22]} 0-1

[Event "8th RTU Open 2018"]
[Site "Riga"]
[Date "2018.08.08"]
[Round "4"]
[White "Shishkov, Andrei"]
[Black "Martinkus, Rolandas"]
[Result "1-0"]
[ECO "E35"]
[WhiteElo "2370"]
[BlackElo "2150"]
[Annotator "NA"]
[PlyCount "47"]
[EventDate "2018.08.06"]
[EventType "swiss"]
[EventCountry "LAT"]
[SourceTitle "playchess.com"]
[Source "ChessBase"]
[SourceQuality "1"]
[TimeControl "5400+30"]

1. d4 {[%emt 0:00:00]} Nf6 {[%emt 0:00:00]} 2. c4 {[%emt 0:00:00]} e6 {[%emt 0:00:20]} 3. Nc3 {[%emt 0:00:00]} Bb4 {[%emt 0:00:41]} 4. Qc2 {[%emt 0:00:00]} d5 {[%emt 0:00:31]} 5. cxd5 {[%emt 0:00:00]} exd5 {[%emt 0:00:20]} 6. Bg5 {[%emt 0:00:00]} h6 {[%emt 0:00:56]} 7. Bh4 {[%emt 0:00:00]} c5 {[%emt 0:00:49]} 8. Nf3 {[%emt 0:01:57]} g5 {[%emt 0:02:48]} 9. Bg3 {[%emt 0:00:05]} g4 {[%emt 0:02:01]} 10. Ne5 {[%emt 0:03:39]} Ne4 {[%emt 0:19:47]} 11. e3 {[%emt 0:15:40]} Qa5 {[%emt 0:03:14]} 12. Bd3 {[%emt 0:06:10]} Nxc3 {[%emt 0:06:09]} 13. O-O {[%emt 0:03:00]} c4 {[%emt 0:05:21]} 14. Bg6 {[%emt 0:05:24]} Ne4 {[%emt 0:10:14]} 15. Bxf7+ {[%emt 0:02:26]} Kd8 {[%emt 0:01:59]} 16. Bg6 {[%emt 0:14:45]} Be6 {[%emt 0:05:48]} 17. Bxe4 {[%emt 0:04:39]} dxe4 {[%emt 0:00:11]} 18. d5 {[%emt 0:00:30]} Bxd5 {[%emt 0:02:22]} 19. Rfd1 {[%emt 0:00:22]} Ke8 {[%emt 0:01:29]} 20. Nxc4 {[%emt 0:04:12]} Qb5 {[%emt 0:03:02]} 21. Nd6+ {[%emt 0:00:41]} Bxd6 {[%emt 0:00:33]} 22. Qc8+ {[%emt 0:00:12]} Kf7 {[%emt 0:04:29]} 23. Qf5+ {[%emt 0:07:04]} Kg7 {[%emt 0:03:18]} 24. Bxd6 {[%emt 0:00:28]} 1-0

[Event "8th RTU Open 2018"]
[Site "Riga"]
[Date "2018.08.08"]
[Round "4"]
[White "Quillan, Gary"]
[Black "Luessmann, Thomas"]
[Result "1-0"]
[ECO "C02"]
[WhiteElo "2349"]
[BlackElo "2061"]
[Annotator "NA"]
[PlyCount "161"]
[EventDate "2018.08.06"]
[EventType "swiss"]
[EventCountry "LAT"]
[SourceTitle "playchess.com"]
[Source "ChessBase"]
[SourceQuality "1"]
[TimeControl "5400+30"]

1. e4 {[%emt 0:00:00]} e6 {[%emt 0:06:17]} 2. d4 {[%emt 0:00:02]} d5 {[%emt 0:00:08]} 3. e5 {[%emt 0:00:39]} c5 {[%emt 0:00:07]} 4. Nf3 {[%emt 0:00:05]} Bd7 {[%emt 0:02:07]} 5. dxc5 {[%emt 0:00:24]} Bxc5 {[%emt 0:00:10]} 6. Bd3 {[%emt 0:00:04]} Nc6 {[%emt 0:01:01]} 7. O-O {[%emt 0:00:13]} Qc7 {[%emt 0:00:46]} 8. Bf4 {[%emt 0:00:47]} Nge7 {[%emt 0:00:30]} 9. Nc3 {[%emt 0:01:41]} a6 {[%emt 0:03:20]} 10. Bg3 {[%emt 0:00:47]} Rc8 {[%emt 0:03:10]} 11. a3 {[%emt 0:00:26]} Nd4 {[%emt 0:01:44]} 12. Re1 {[%emt 0:10:25]} Ndf5 {[%emt 0:01:53]} 13. Bxf5 {[%emt 0:12:38]} Nxf5 {[%emt 0:03:04]} 14. Qd2 {[%emt 0:11:40]} O-O {[%emt 0:03:43]} 15. Ne2 {[%emt 0:18:59]} Bb5 {[%emt 0:10:57]} 16. Nf4 {[%emt 0:01:14]} Be7 {[%emt 0:03:05]} 17. a4 {[%emt 0:02:12]} Bd7 {[%emt 0:01:13]} 18. Nxd5 {[%emt 0:07:49]} exd5 {[%emt 0:01:23]} 19. e6 {[%emt 0:00:04]} Nxg3 {[%emt 0:01:30]} 20. exd7 {[%emt 0:00:07]} Qxd7 {[%emt 0:01:41]} 21. hxg3 {[%emt 0:00:06]} Bf6 {[%emt 0:01:48]} 22. c3 {[%emt 0:01:16]} g6 {[%emt 0:03:18]} 23. Re3 {[%emt 0:02:03]} Rfd8 {[%emt 0:01:25]} 24. Rd3 {[%emt 0:00:13]} Rc4 {[%emt 0:02:37]} 25. b3 {[%emt 0:06:07]} Rc5 {[%emt 0:00:06]} 26. Rd1 {[%emt 0:04:37]} b5 {[%emt 0:01:38]} 27. axb5 {[%emt 0:02:29]} axb5 {[%emt 0:01:18]} 28. Nd4 {[%emt 0:04:47]} Rdc8 {[%emt 0:02:16]} 29. Ne2 {[%emt 0:04:32]} Qc6 {[%emt 0:00:57]} 30. Rxd5 {[%emt 0:05:31]} Bxc3 {[%emt 0:02:44]} 31. Rd8+ {[%emt 0:00:40]} Kg7 {[%emt 0:02:44]} 32. Nxc3 {[%emt 0:01:02]} Rxd8 {[%emt 0:00:24]} 33. Qxd8 {[%emt 0:00:13]} Rxc3 {[%emt 0:00:02]} 34. Rd6 {[%emt 0:01:05]} Rc1+ {[%emt 0:00:49]} 35. Kh2 {[%emt 0:00:03]} Qc3 {[%emt 0:00:11]} 36. Qg5 {[%emt 0:01:22]} Qa1 {[%emt 0:04:27]} 37. g4 {[%emt 0:00:46]} b4 {[%emt 0:07:49]} 38. Qe3 {[%emt 0:00:51]} Rh1+ {[%emt 0:02:07]} 39. Kg3 {[%emt 0:00:02]} Rd1 {[%emt 0:02:31]} 40. Rxd1 {[%emt 0:00:39]} Qxd1 {[%emt 0:00:05]} 41. Qe5+ {[%emt 0:00:10]} Kg8 {[%emt 0:00:02]} 42. Qb8+ {[%emt 0:00:14]} Kg7 {[%emt 0:00:08]} 43. Qxb4 {[%emt 0:00:06]} h5 {[%emt 0:01:33]} 44. Qc3+ {[%emt 0:00:34]} Kh7 {[%emt 0:01:34]} 45. gxh5 {[%emt 0:00:24]} Qd6+ {[%emt 0:00:27]} 46. Kh3 {[%emt 0:01:13]} gxh5 {[%emt 0:00:09]} 47. Qf3 {[%emt 0:00:27]} Qe6+ {[%emt 0:02:26]} 48. Kh2 {[%emt 0:00:06]} Kg6 {[%emt 0:00:14]} 49. Qd3+ {[%emt 0:00:21]} Kg7 {[%emt 0:00:04]} 50. Qd4+ {[%emt 0:00:19]} Kg6 {[%emt 0:00:24]} 51. b4 {[%emt 0:00:15]} f5 {[%emt 0:00:28]} 52. Qf4 {[%emt 0:00:16]} Qb6 {[%emt 0:00:30]} 53. Qg3+ {[%emt 0:00:31]} Kf6 {[%emt 0:00:28]} 54. Qc3+ {[%emt 0:00:16]} Kg6 {[%emt 0:00:25]} 55. Qg3+ {[%emt 0:00:20]} Kf6 {[%emt 0:00:02]} 56. Qf4 {[%emt 0:00:21]} Kg6 {[%emt 0:00:01]} 57. Kg3 {[%emt 0:00:42]} Qc6 {[%emt 0:00:20]} 58. Qd4 {[%emt 0:00:30]} Qc7+ {[%emt 0:00:28]} 59. Kh3 {[%emt 0:01:11]} Qc6 {[%emt 0:00:45]} 60. Qf4 {[%emt 0:01:26]} Qb6 {[%emt 0:01:03]} 61. Qg3+ {[%emt 0:00:36]} Kf6 {[%emt 0:00:04]} 62. Qh4+ {[%emt 0:00:26]} Kg6 {[%emt 0:00:00]} 63. f4 {[%emt 0:00:50]} Qxb4 {[%emt 0:01:08]} 64. Qg5+ {[%emt 0:00:05]} Kf7 {[%emt 0:00:17]} 65. Qxh5+ {[%emt 0:00:12]} Ke7 {[%emt 0:01:14]} 66. Qg5+ {[%emt 0:00:24]} Kd6 {[%emt 0:01:20]} 67. Qf6+ {[%emt 0:00:21]} Kc7 {[%emt 0:00:21]} 68. Qxf5 {[%emt 0:00:25]} Qb3+ {[%emt 0:00:42]} 69. g3 {[%emt 0:00:19]} Qf3 {[%emt 0:00:23]} 70. Kh4 {[%emt 0:01:00]} Kd8 {[%emt 0:00:53]} 71. g4 {[%emt 0:00:28]} Ke7 {[%emt 0:00:12]} 72. Kg5 {[%emt 0:00:11]} Qg3 {[%emt 0:00:35]} 73. Qf6+ {[%emt 0:00:15]} Ke8 {[%emt 0:00:15]} 74. f5 {[%emt 0:00:24]} Qh3 {[%emt 0:00:21]} 75. Qg7 {[%emt 0:01:09]} Qf3 {[%emt 0:01:33]} 76. Qg8+ {[%emt 0:00:47]} Ke7 {[%emt 0:00:07]} 77. Qe6+ {[%emt 0:00:17]} Kf8 {[%emt 0:00:09]} 78. Qe5 {[%emt 0:00:36]} Qf2 {[%emt 0:00:49]} 79. Kg6 {[%emt 0:00:53]} Qc2 {[%emt 0:02:03]} 80. g5 {[%emt 0:00:38]} Qd3 {[%emt 0:00:22]} 81. Qe6 {[%emt 0:00:52]} 1-0

[Event "8th RTU Open 2018"]
[Site "Riga"]
[Date "2018.08.08"]
[Round "4"]
[White "Narva, Mai"]
[Black "Zakhartsov, Viacheslav V"]
[Result "1/2-1/2"]
[ECO "E15"]
[WhiteElo "2320"]
[BlackElo "2544"]
[Annotator "ChessBase"]
[PlyCount "142"]
[EventDate "2018.08.06"]
[EventType "swiss"]
[EventCountry "LAT"]
[SourceTitle "playchess.com"]
[Source "ChessBase"]
[SourceQuality "1"]
[TimeControl "5400+30"]

1. d4 {[%emt 0:00:00]} Nf6 {[%emt 0:00:00]} 2. c4 {[%emt 0:00:00]} e6 {[%emt 0:00:00]} 3. Nf3 {[%emt 0:00:00]} b6 {[%emt 0:00:00]} 4. g3 {[%emt 0:00:16]} Ba6 {[%emt 0:01:57]} 5. b3 {[%emt 0:00:27]} Bb4+ {[%emt 0:00:11]} 6. Bd2 {[%emt 0:00:18]} Be7 {[%emt 0:00:04]} 7. Bg2 {[%emt 0:00:23]} c6 {[%emt 0:00:21]} 8. Bc3 {[%emt 0:00:32]} d5 {[%emt 0:00:13]} 9. Nbd2 {[%emt 0:00:31]} Nbd7 {[%emt 0:00:11]} 10. O-O {[%emt 0:00:38]} Rc8 {[%emt 0:08:34]} 11. Re1 {[%emt 0:03:12]} c5 {[%emt 0:02:05]} 12. cxd5 {[%emt 0:18:07]} Nxd5 {[%emt 0:00:57]} 13. Bb2 {[%emt 0:00:13]} O-O {[%emt 0:01:39]} 14. a3 {[%emt 0:09:05]} b5 {[%emt 0:06:17]} 15. e4 {[%emt 0:06:51]} N5f6 {[%emt 0:13:59]} 16. Qe2 {[%emt 0:21:15]} Qb6 {[%emt 0:08:09]} 17. dxc5 {[%emt 0:03:45]} Nxc5 {[%emt 0:03:01]} 18. b4 {[%emt 0:01:08]} Na4 {[%emt 0:00:20]} 19. Bd4 {[%emt 0:00:49]} Qc7 {[%emt 0:02:06]} 20. Be5 {[%emt 0:15:00]} Qd7 {[%emt 0:04:23]} 21. Rac1 {[%emt 0:03:57]} Bb7 {[%emt 0:03:33]} 22. Ba1 {[%emt 0:08:05]} Rfd8 {[%emt 0:05:28]} 23. Nd4 {[%emt 0:01:58]} a6 {[%emt 0:01:44]} 24. N2b3 {[%emt 0:01:43]} Rxc1 {[%emt 0:01:31]} 25. Rxc1 {[%emt 0:00:10]} Rc8 {[%emt 0:00:12]} 26. Rd1 {[%emt 0:02:57]} Qe8 {[%emt 0:01:07]} 27. Qe3 {[%emt 0:00:54]} Rc7 {[%emt 0:03:34]} 28. Ne2 {[%emt 0:00:55]} Qc8 {[%emt 0:06:23]} 29. h3 {[%emt 0:00:29]} Nd7 {[%emt 0:01:07]} 30. Nf4 {[%emt 0:00:41]} Nab6 {[%emt 0:02:10]} 31. Nh5 {[%emt 0:00:33]} Nc4 {[%emt 0:00:52]} 32. Qe2 {[%emt 0:00:36]} e5 {[%emt 0:01:54]} 33. f4 {[%emt 0:00:19]} g6 {[%emt 0:02:47]} 34. fxe5 {[%emt 0:00:22]} gxh5 {[%emt 0:00:30]} 35. Qxh5 {[%emt 0:00:12]} Nf8 {[%emt 0:00:41]} 36. Nd4 {[%emt 0:00:25]} Ne3 {[%emt 0:02:09]} 37. Nf5 {[%emt 0:01:09]} Nxf5 {[%emt 0:01:47]} 38. exf5 {[%emt 0:00:07]} Rc2 {[%emt 0:06:29]} 39. Qg4+ {[%emt 0:00:53]} Kh8 {[%emt 0:02:28]} 40. Be4 {[%emt 0:00:30]} Bxe4 {[%emt 0:00:45]} 41. Qxe4 {[%emt 0:00:18]} Rc1 {[%emt 0:00:47]} 42. e6+ {[%emt 0:00:40]} f6 {[%emt 0:01:45]} 43. Qd3 {[%emt 0:00:34]} Qc6 {[%emt 0:00:48]} 44. Bd4 {[%emt 0:00:29]} Rxd1+ {[%emt 0:01:33]} 45. Qxd1 {[%emt 0:00:05]} Qe4 {[%emt 0:01:00]} 46. g4 {[%emt 0:00:53]} h5 {[%emt 0:00:40]} 47. Kf2 {[%emt 0:00:35]} Qf4+ {[%emt 0:01:59]} 48. Kg2 {[%emt 0:00:22]} h4 {[%emt 0:00:45]} 49. Bf2 {[%emt 0:00:25]} Bd6 {[%emt 0:00:12]} 50. Bxh4 {[%emt 0:00:34]} Qh2+ {[%emt 0:00:07]} 51. Kf3 {[%emt 0:00:13]} Qxh3+ {[%emt 0:01:15]} 52. Ke4 {[%emt 0:00:07]} Be7 {[%emt 0:00:28]} 53. Be1 {[%emt 0:01:14]} Nh7 {[%emt 0:01:03]} 54. Bd2 {[%emt 0:00:34]} Qg2+ {[%emt 0:00:50]} 55. Kd4 {[%emt 0:00:23]} Kg7 {[%emt 0:00:09]} 56. Kc3 {[%emt 0:00:37]} Qc6+ {[%emt 0:00:41]} 57. Kb2 {[%emt 0:00:21]} Ng5 {[%emt 0:00:18]} 58. Bc3 {[%emt 0:00:39]} Ne4 {[%emt 0:00:38]} 59. Bd4 {[%emt 0:00:24]} Bd6 {[%emt 0:00:43]} 60. Qd3 {[%emt 0:00:21]} Qd5 {[%emt 0:00:42]} 61. Qe3 {[%emt 0:00:45]} Kg8 {[%emt 0:00:24]} 62. Kc2 {[%emt 0:00:26]} Qc4+ {[%emt 0:00:43]} 63. Kb2 {[%emt 0:00:09]} Qd5 {[%emt 0:00:17]} 64. Kc2 {[%emt 0:00:09]} Bg3 {[%emt 0:00:13]} 65. Kd3 {[%emt 0:01:03]} Nf2+ {[%emt 0:00:05]} 66. Ke2 {[%emt 0:00:23]} Nxg4 {[%emt 0:00:03]} 67. Qxg3 {[%emt 0:00:18]} Qxd4 68. Kf3 {[%emt 0:00:24]} Qd1+ {[%emt 0:00:43]} 69. Kf4 {[%emt 0:00:24]} Qd4+ {[%emt 0:00:05]} 70. Kf3 {[%emt 0:00:05]} Qd1+ {[%emt 0:00:02]} 71. Kf4 {[%emt 0:01:06]} Qd4+ {[%emt 0:00:04] Ke4} 1/2-1/2